[Event "*** SCC Grand Prix: Titled Tuesday Blitz"]
[Site "Chess.com"]
[Date "2020.07.21"]
[Round "3"]
[White "RaunakSadhwani2005"]
[Black "124chess"]
[Result "1-0"]
[WhiteElo "2996"]
[BlackElo "2681"]
[TimeControl "180+1"]
[EndTime "10:27:57 PDT"]
[Termination "RaunakSadhwani2005 won on time"]

1. d4 {[%clk 0:02:52.1]} 1... d6 {[%clk 0:03:00.9]} 2. e4 {[%clk 0:02:48.4]}
2... Nf6 {[%clk 0:03:01.1]} 3. Nc3 {[%clk 0:02:48.5]} 3... e5 {[%clk 0:03:01.7]}
4. Nf3 {[%clk 0:02:48.4]} 4... Nbd7 {[%clk 0:03:01.4]} 5. Bc4 {[%clk 0:02:48.5]}
5... Be7 {[%clk 0:03:01.5]} 6. O-O {[%clk 0:02:48.1]} 6... O-O {[%clk
0:03:02.1]} 7. a4 {[%clk 0:02:47.9]} 7... c6 {[%clk 0:03:02.7]} 8. Ba2 {[%clk
0:02:47]} 8... a5 {[%clk 0:03:00.8]} 9. Qe2 {[%clk 0:02:46.9]} 9... Qc7 {[%clk
0:02:59.2]} 10. Rd1 {[%clk 0:02:46]} 10... h6 {[%clk 0:02:51.5]} 11. h3 {[%clk
0:02:40.5]} 11... Re8 {[%clk 0:02:51.1]} 12. Qc4 {[%clk 0:02:30.5]} 12... Rf8
{[%clk 0:02:48.6]} 13. Be3 {[%clk 0:02:27.8]} 13... exd4 {[%clk 0:02:46.7]} 14.
Nxd4 {[%clk 0:02:24.8]} 14... Ne5 {[%clk 0:02:47]} 15. Qe2 {[%clk 0:02:23.9]}
15... Re8 {[%clk 0:02:46.8]} 16. f4 {[%clk 0:02:18.4]} 16... Ng6 {[%clk
0:02:46.4]} 17. Qf3 {[%clk 0:02:03.9]} 17... Bf8 {[%clk 0:02:42.9]} 18. Qg3
{[%clk 0:02:04]} 18... Nxe4 {[%clk 0:02:29.7]} 19. Nxe4 {[%clk 0:01:49.9]} 19...
Rxe4 {[%clk 0:02:30.6]} 20. f5 {[%clk 0:01:43.6]} 20... Nh4 {[%clk 0:02:04]} 21.
f6 {[%clk 0:01:23.1]} 21... g6 {[%clk 0:02:03.6]} 22. Re1 {[%clk 0:01:12.4]}
22... Kh7 {[%clk 0:01:34.8]} 23. Bxh6 {[%clk 0:01:01.8]} 23... Rxd4 {[%clk
0:01:00.9]} 24. Bxf8 {[%clk 0:00:57.5]} 24... Be6 {[%clk 0:01:01.1]} 25. Bxe6
{[%clk 0:00:40.4]} 25... fxe6 {[%clk 0:00:21.1]} 26. Rxe6 {[%clk 0:00:40.8]}
26... Nf5 {[%clk 0:00:20.5]} 27. Re7+ {[%clk 0:00:41.2]} 27... Nxe7 {[%clk
0:00:20.2]} 28. fxe7 {[%clk 0:00:41.4]} 28... Re4 {[%clk 0:00:15.8]} 29. Rf1
{[%clk 0:00:24.3]} 29... Re8 {[%clk 0:00:02.9]} 30. Rf7+ {[%clk 0:00:22.2]}
30... Kh8 {[%clk 0:00:01.9]} 31. Qxg6 {[%clk 0:00:18.2]} 31... Re1+ {[%clk
0:00:02]} 32. Kf2 {[%clk 0:00:18.2]} 32... Qb6+ {[%clk 0:00:01.4]} 33. Kxe1
{[%clk 0:00:16.5]} 33... Qe3+ {[%clk 0:00:01.5]} 34. Kd1 {[%clk 0:00:16.6]}
34... Qg1+ {[%clk 0:00:01.3]} 35. Ke2 {[%clk 0:00:16.1]} 1-0

[Event "*** SCC Grand Prix: Titled Tuesday Blitz"]
[Site "Chess.com"]
[Date "2020.07.21"]
[Round "3"]
[White "monalize"]
[Black "ChristianAlm"]
[Result "0-1"]
[WhiteElo "2279"]
[BlackElo "2524"]
[TimeControl "180+1"]
[EndTime "10:27:57 PDT"]
[Termination "ChristianAlm won on time"]

1. e4 {[%clk 0:03:00.8]} 1... e6 {[%clk 0:02:58.7]} 2. d4 {[%clk 0:02:55.5]}
2... d5 {[%clk 0:02:58.5]} 3. Nd2 {[%clk 0:02:55.9]} 3... Nc6 {[%clk 0:02:56.6]}
4. Ngf3 {[%clk 0:02:52.1]} 4... Nf6 {[%clk 0:02:56]} 5. e5 {[%clk 0:02:51.4]}
5... Nd7 {[%clk 0:02:54.9]} 6. c3 {[%clk 0:02:46.3]} 6... f6 {[%clk 0:02:54]} 7.
Bb5 {[%clk 0:02:37.7]} 7... fxe5 {[%clk 0:02:34.3]} 8. dxe5 {[%clk 0:02:31.4]}
8... Bc5 {[%clk 0:02:31.5]} 9. Nb3 {[%clk 0:02:14.9]} 9... Bb6 {[%clk
0:02:25.9]} 10. a4 {[%clk 0:02:13.4]} 10... a6 {[%clk 0:02:23.6]} 11. Bxc6
{[%clk 0:02:12.7]} 11... bxc6 {[%clk 0:02:24.5]} 12. a5 {[%clk 0:02:11.3]} 12...
Ba7 {[%clk 0:02:24.5]} 13. O-O {[%clk 0:02:10.7]} 13... O-O {[%clk 0:02:19.7]}
14. Qe2 {[%clk 0:02:04.4]} 14... c5 {[%clk 0:01:57.4]} 15. Be3 {[%clk
0:01:41.8]} 15... Rb8 {[%clk 0:01:53]} 16. Nc1 {[%clk 0:01:40.8]} 16... Qe8
{[%clk 0:01:43.4]} 17. Nd3 {[%clk 0:01:20.2]} 17... Bb7 {[%clk 0:01:28.4]} 18.
b4 {[%clk 0:01:07]} 18... d4 {[%clk 0:01:25.1]} 19. cxd4 {[%clk 0:01:00.7]}
19... Rxf3 {[%clk 0:01:00]} 20. gxf3 {[%clk 0:00:59.6]} 20... Qg6+ {[%clk
0:00:59.5]} 21. Kh1 {[%clk 0:00:57.5]} 21... Qh5 {[%clk 0:00:51.4]} 22. Ne1
{[%clk 0:00:51.6]} 22... Rf8 {[%clk 0:00:45.1]} 23. Qc4 {[%clk 0:00:44.5]} 23...
Rxf3 {[%clk 0:00:35.6]} 24. Qxe6+ {[%clk 0:00:40.6]} 24... Kf8 {[%clk
0:00:19.4]} 25. d5 {[%clk 0:00:36.4]} 25... Nxe5 {[%clk 0:00:10.1]} 26. Bxc5+
{[%clk 0:00:26.9]} 26... Bxc5 {[%clk 0:00:08.8]} 27. bxc5 {[%clk 0:00:26.1]}
27... Rf6 {[%clk 0:00:08.6]} 28. c6 {[%clk 0:00:14.5]} 28... Rxe6 {[%clk
0:00:07.8]} 29. cxb7 {[%clk 0:00:14.5]} 29... Re8 {[%clk 0:00:08.1]} 30. Rb1
{[%clk 0:00:14]} 30... Ng4 {[%clk 0:00:07.4]} 31. Nf3 {[%clk 0:00:10.1]} 31...
Qxd5 {[%clk 0:00:06.8]} 32. Kg2 {[%clk 0:00:09.1]} 32... Ne5 {[%clk 0:00:05.5]}
0-1

[Event "*** SCC Grand Prix: Titled Tuesday Blitz"]
[Site "Chess.com"]
[Date "2020.07.21"]
[Round "3"]
[White "kobemagic"]
[Black "m-garcett"]
[Result "1-0"]
[WhiteElo "2319"]
[BlackElo "2053"]
[TimeControl "180+1"]
[EndTime "10:27:57 PDT"]
[Termination "kobemagic won on time"]

1. d4 {[%clk 0:03:00.9]} 1... Nf6 {[%clk 0:02:46.8]} 2. Nf3 {[%clk 0:02:56.9]}
2... e6 {[%clk 0:02:47]} 3. b3 {[%clk 0:02:54.4]} 3... d5 {[%clk 0:02:40.9]} 4.
Bb2 {[%clk 0:02:55.3]} 4... b6 {[%clk 0:02:37.5]} 5. e3 {[%clk 0:02:56.2]} 5...
Bb7 {[%clk 0:02:37.3]} 6. c4 {[%clk 0:02:55.7]} 6... Nbd7 {[%clk 0:02:35.2]} 7.
Nbd2 {[%clk 0:02:51]} 7... Bd6 {[%clk 0:02:32.3]} 8. Rc1 {[%clk 0:02:51.1]} 8...
c5 {[%clk 0:02:32.1]} 9. cxd5 {[%clk 0:02:49.9]} 9... exd5 {[%clk 0:02:28.4]}
10. Be2 {[%clk 0:02:50]} 10... O-O {[%clk 0:02:26.8]} 11. O-O {[%clk 0:02:47.8]}
11... Qe7 {[%clk 0:02:22.9]} 12. a3 {[%clk 0:02:44.8]} 12... Rfd8 {[%clk
0:02:22.3]} 13. Bd3 {[%clk 0:02:28]} 13... Rac8 {[%clk 0:02:19]} 14. Bb1 {[%clk
0:02:26.9]} 14... Ne4 {[%clk 0:02:02.6]} 15. dxc5 {[%clk 0:02:14.6]} 15... bxc5
{[%clk 0:01:56.3]} 16. Nxe4 {[%clk 0:02:12.8]} 16... dxe4 {[%clk 0:01:54.9]} 17.
Nd2 {[%clk 0:02:09.4]} 17... Nf6 {[%clk 0:01:26.7]} 18. Qe2 {[%clk 0:02:02]}
18... h5 {[%clk 0:01:20.1]} 19. Nc4 {[%clk 0:02:01.3]} 19... Bb8 {[%clk
0:01:15.5]} 20. Rfd1 {[%clk 0:01:57.4]} 20... Ng4 {[%clk 0:00:32.9]} 21. h3
{[%clk 0:01:42.6]} 21... Qh4 {[%clk 0:00:16.8]} 22. Qf1 {[%clk 0:00:48.6]} 22...
Nh2 {[%clk 0:00:13.4]} 23. g3 {[%clk 0:00:31.6]} 23... Nf3+ {[%clk 0:00:11.2]}
24. Kg2 {[%clk 0:00:27.5]} 24... Qg5 {[%clk 0:00:11.4]} 25. Rxd8+ {[%clk
0:00:20.4]} 25... Rxd8 {[%clk 0:00:10.7]} 26. Rd1 {[%clk 0:00:20.9]} 26... Rxd1
{[%clk 0:00:08.5]} 27. Qxd1 {[%clk 0:00:20.4]} 27... h4 {[%clk 0:00:07.4]} 28.
Qd7 {[%clk 0:00:16.9]} 28... hxg3 {[%clk 0:00:05.5]} 29. Qg4 {[%clk 0:00:17.2]}
29... Qxg4 {[%clk 0:00:04.8]} 30. hxg4 {[%clk 0:00:17.2]} 30... gxf2 {[%clk
0:00:05.1]} 31. Kxf2 {[%clk 0:00:18.1]} 31... Ng5 {[%clk 0:00:03.8]} 32. Ke2
{[%clk 0:00:16.7]} 32... f6 {[%clk 0:00:02.8]} 33. Na5 {[%clk 0:00:16.2]} 33...
Ba6+ {[%clk 0:00:02.8]} 34. Kf2 {[%clk 0:00:16.8]} 34... Bc8 {[%clk 0:00:02.6]}
35. Nc6 {[%clk 0:00:16.8]} 35... Bc7 {[%clk 0:00:01.6]} 36. Ne7+ {[%clk
0:00:17.2]} 1-0

[Event "*** SCC Grand Prix: Titled Tuesday Blitz"]
[Site "Chess.com"]
[Date "2020.07.21"]
[Round "3"]
[White "GOGIEFF"]
[Black "AlexTriapishko"]
[Result "1/2-1/2"]
[WhiteElo "2895"]
[BlackElo "2635"]
[TimeControl "180+1"]
[EndTime "10:27:58 PDT"]
[Termination "Game drawn - insufficient material"]

1. d4 {[%clk 0:03:00.9]} 1... Nf6 {[%clk 0:02:49.2]} 2. c4 {[%clk 0:03:00.3]}
2... g6 {[%clk 0:02:49.8]} 3. Nc3 {[%clk 0:03:00.4]} 3... d5 {[%clk 0:02:50.4]}
4. Nf3 {[%clk 0:02:58.6]} 4... Bg7 {[%clk 0:02:50]} 5. cxd5 {[%clk 0:02:57.3]}
5... Nxd5 {[%clk 0:02:50.9]} 6. Bd2 {[%clk 0:02:57.8]} 6... O-O {[%clk 0:02:48]}
7. Rc1 {[%clk 0:02:56.7]} 7... Nb6 {[%clk 0:02:29.4]} 8. Bg5 {[%clk 0:02:55.2]}
8... h6 {[%clk 0:02:22.6]} 9. Bf4 {[%clk 0:02:55.1]} 9... Nc6 {[%clk 0:02:16.8]}
10. e3 {[%clk 0:02:54.6]} 10... Be6 {[%clk 0:01:51.5]} 11. Be2 {[%clk
0:02:44.9]} 11... Nd5 {[%clk 0:01:29.1]} 12. Nxd5 {[%clk 0:02:42]} 12... Bxd5
{[%clk 0:01:26.2]} 13. a3 {[%clk 0:02:19.7]} 13... Bxf3 {[%clk 0:00:44.9]} 14.
Bxf3 {[%clk 0:02:17.8]} 14... e5 {[%clk 0:00:45.1]} 15. dxe5 {[%clk 0:02:13.7]}
15... Nxe5 {[%clk 0:00:44.3]} 16. Be2 {[%clk 0:01:59.9]} 16... Qxd1+ {[%clk
0:00:33.3]} 17. Kxd1 {[%clk 0:01:56.4]} 17... g5 {[%clk 0:00:22.4]} 18. Bg3
{[%clk 0:01:55.5]} 18... f5 {[%clk 0:00:22.5]} 19. Kc2 {[%clk 0:01:45.8]} 19...
f4 {[%clk 0:00:21.7]} 20. exf4 {[%clk 0:01:45.1]} 20... gxf4 {[%clk 0:00:22.6]}
21. Bh4 {[%clk 0:01:44.8]} 21... Ng6 {[%clk 0:00:23.1]} 22. g3 {[%clk
0:01:38.1]} 22... Nxh4 {[%clk 0:00:21.5]} 23. gxh4 {[%clk 0:01:38.5]} 23... f3
{[%clk 0:00:20.1]} 24. Bc4+ {[%clk 0:01:35.9]} 24... Kh8 {[%clk 0:00:20.4]} 25.
Rcd1 {[%clk 0:01:28.8]} 25... Rf4 {[%clk 0:00:19.8]} 26. Bb3 {[%clk 0:01:25.2]}
26... Bd4 {[%clk 0:00:18.3]} 27. Rd2 {[%clk 0:01:10.7]} 27... c5 {[%clk
0:00:18.2]} 28. Re1 {[%clk 0:01:07.9]} 28... Raf8 {[%clk 0:00:09.6]} 29. Re7
{[%clk 0:00:56.1]} 29... b5 {[%clk 0:00:09.4]} 30. Bd5 {[%clk 0:00:52.3]} 30...
Rxh4 {[%clk 0:00:06.1]} 31. Rxa7 {[%clk 0:00:35.2]} 31... Rxh2 {[%clk
0:00:06.2]} 32. Ra8 {[%clk 0:00:35.4]} 32... Rxa8 {[%clk 0:00:04.5]} 33. Bxa8
{[%clk 0:00:36.3]} 33... Rxf2 {[%clk 0:00:02.9]} 34. Rxf2 {[%clk 0:00:35]} 34...
Bxf2 {[%clk 0:00:03.8]} 35. Bxf3 {[%clk 0:00:34.9]} 35... Be1 {[%clk 0:00:02.2]}
36. b4 {[%clk 0:00:34.1]} 36... cxb4 {[%clk 0:00:01.8]} 37. axb4 {[%clk
0:00:35]} 37... Bxb4 {[%clk 0:00:02.4]} 38. Bc6 {[%clk 0:00:35.7]} 38... Bd6
{[%clk 0:00:02.3]} 39. Bxb5 {[%clk 0:00:35.4]} 39... h5 {[%clk 0:00:03.2]} 40.
Be2 {[%clk 0:00:34.7]} 40... h4 {[%clk 0:00:04.1]} 41. Bg4 {[%clk 0:00:34.8]}
41... h3 {[%clk 0:00:05]} 42. Bxh3 {[%clk 0:00:34.2]} 1/2-1/2

[Event "*** SCC Grand Prix: Titled Tuesday Blitz"]
[Site "Chess.com"]
[Date "2020.07.21"]
[Round "3"]
[White "kidagent"]
[Black "ljuks68"]
[Result "0-1"]
[WhiteElo "2215"]
[BlackElo "2432"]
[TimeControl "180+1"]
[EndTime "10:28:00 PDT"]
[Termination "ljuks68 won by checkmate"]

1. e4 {[%clk 0:03:00.9]} 1... e6 {[%clk 0:02:59.8]} 2. d4 {[%clk 0:03:00.4]}
2... d5 {[%clk 0:03:00.3]} 3. Nc3 {[%clk 0:03:01]} 3... Bb4 {[%clk 0:02:59.5]}
4. e5 {[%clk 0:03:01.1]} 4... Ne7 {[%clk 0:02:59.7]} 5. a3 {[%clk 0:02:54.4]}
5... Bxc3+ {[%clk 0:02:59.1]} 6. bxc3 {[%clk 0:02:55.3]} 6... c5 {[%clk
0:02:59.4]} 7. Qg4 {[%clk 0:02:53.7]} 7... Qc7 {[%clk 0:02:59]} 8. Qxg7 {[%clk
0:02:49.6]} 8... Rg8 {[%clk 0:02:59]} 9. Qxh7 {[%clk 0:02:49.7]} 9... cxd4
{[%clk 0:02:59.1]} 10. Ne2 {[%clk 0:02:49.7]} 10... Nbc6 {[%clk 0:02:59.1]} 11.
f4 {[%clk 0:02:45.3]} 11... dxc3 {[%clk 0:02:58.7]} 12. Nxc3 {[%clk 0:02:36.6]}
12... Nxe5 {[%clk 0:01:57.6]} 13. Nb5 {[%clk 0:02:25.1]} 13... Qb8 {[%clk
0:01:49.2]} 14. Bb2 {[%clk 0:02:24.1]} 14... N5c6 {[%clk 0:01:32.4]} 15. g3
{[%clk 0:02:20.3]} 15... a6 {[%clk 0:01:31.9]} 16. Nd4 {[%clk 0:02:18]} 16...
Bd7 {[%clk 0:01:26.1]} 17. Bd3 {[%clk 0:02:11.4]} 17... Qa7 {[%clk 0:01:24.4]}
18. c3 {[%clk 0:01:54.2]} 18... O-O-O {[%clk 0:01:16.9]} 19. O-O {[%clk
0:01:52.2]} 19... f6 {[%clk 0:01:03.4]} 20. Kg2 {[%clk 0:01:34.6]} 20... Rh8
{[%clk 0:00:57.3]} 21. Qg7 {[%clk 0:01:33.4]} 21... e5 {[%clk 0:00:50.3]} 22.
fxe5 {[%clk 0:01:26.5]} 22... Bh3+ {[%clk 0:00:49.4]} 23. Kh1 {[%clk 0:01:20.5]}
23... fxe5 {[%clk 0:00:48.5]} 24. Nxc6 {[%clk 0:01:17.1]} 24... Nxc6 {[%clk
0:00:43.3]} 25. Rf7 {[%clk 0:01:15.9]} 25... Qe3 {[%clk 0:00:15.9]} 26. Rc7+
{[%clk 0:01:05.3]} 26... Kb8 {[%clk 0:00:16]} 27. Rxb7+ {[%clk 0:01:04.8]} 27...
Ka8 {[%clk 0:00:16.4]} 28. Rf7 {[%clk 0:00:17.8]} 28... Qxd3 {[%clk 0:00:15.2]}
29. Re1 {[%clk 0:00:16]} 29... Be6 {[%clk 0:00:10.6]} 30. Rf6 {[%clk 0:00:14.4]}
30... Rdg8 {[%clk 0:00:09.1]} 31. Qc7 {[%clk 0:00:11.1]} 31... Nd8 {[%clk
0:00:09]} 32. Qb6 {[%clk 0:00:05.6]} 32... Qxg3 {[%clk 0:00:07.4]} 33. Qxa6+
{[%clk 0:00:04.5]} 33... Kb8 {[%clk 0:00:07.5]} 34. Qb6+ {[%clk 0:00:04.6]}
34... Nb7 {[%clk 0:00:07.7]} 35. Qxe6 {[%clk 0:00:03.3]} 35... Qxh2# {[%clk
0:00:06.7]} 0-1

[Event "*** SCC Grand Prix: Titled Tuesday Blitz"]
[Site "Chess.com"]
[Date "2020.07.21"]
[Round "3"]
[White "mfwagnerpeixoto"]
[Black "NikolaGry"]
[Result "0-1"]
[WhiteElo "2280"]
[BlackElo "2637"]
[TimeControl "180+1"]
[EndTime "10:28:01 PDT"]
[Termination "NikolaGry won on time"]

1. e4 {[%clk 0:03:00.9]} 1... c5 {[%clk 0:02:59.5]} 2. Nf3 {[%clk 0:03:00.2]}
2... Nf6 {[%clk 0:02:59.2]} 3. e5 {[%clk 0:02:52.9]} 3... Nd5 {[%clk 0:02:59]}
4. Nc3 {[%clk 0:02:52.9]} 4... Nxc3 {[%clk 0:02:51]} 5. dxc3 {[%clk 0:02:53.8]}
5... Nc6 {[%clk 0:02:49.7]} 6. Bc4 {[%clk 0:02:44.9]} 6... e6 {[%clk 0:02:46.5]}
7. O-O {[%clk 0:02:41]} 7... d5 {[%clk 0:02:38.1]} 8. exd6 {[%clk 0:02:23.7]}
8... Qxd6 {[%clk 0:02:36.4]} 9. Qe2 {[%clk 0:02:22.9]} 9... Be7 {[%clk
0:02:34.5]} 10. Rd1 {[%clk 0:02:20.4]} 10... Qc7 {[%clk 0:02:34.5]} 11. Bg5
{[%clk 0:02:08.4]} 11... O-O {[%clk 0:02:27.5]} 12. Rd2 {[%clk 0:01:55.3]} 12...
Bxg5 {[%clk 0:02:12.4]} 13. Nxg5 {[%clk 0:01:53.7]} 13... Qe5 {[%clk 0:02:01.3]}
14. Qxe5 {[%clk 0:01:42]} 14... Nxe5 {[%clk 0:02:01.1]} 15. Bf1 {[%clk
0:01:42.7]} 15... b6 {[%clk 0:01:55.4]} 16. Rad1 {[%clk 0:01:27.8]} 16... Bb7
{[%clk 0:01:46.3]} 17. f4 {[%clk 0:01:20.1]} 17... Ng6 {[%clk 0:01:41]} 18. g3
{[%clk 0:01:09.1]} 18... h6 {[%clk 0:01:36.4]} 19. Nh3 {[%clk 0:01:05.2]} 19...
Bc6 {[%clk 0:01:23.7]} 20. Bg2 {[%clk 0:01:01.2]} 20... Ne7 {[%clk 0:01:12.5]}
21. Rd7 {[%clk 0:00:35.1]} 21... Bxd7 {[%clk 0:01:05]} 22. Bxa8 {[%clk
0:00:34.2]} 22... Ba4 {[%clk 0:00:58]} 23. Be4 {[%clk 0:00:32.3]} 23... f5
{[%clk 0:00:53.8]} 24. b3 {[%clk 0:00:25.9]} 24... fxe4 {[%clk 0:00:52.4]} 25.
bxa4 {[%clk 0:00:25.6]} 25... Nd5 {[%clk 0:00:52.1]} 26. c4 {[%clk 0:00:21.6]}
26... Nc3 {[%clk 0:00:51.7]} 27. Re1 {[%clk 0:00:20.4]} 27... Rd8 {[%clk
0:00:47]} 28. Nf2 {[%clk 0:00:20.3]} 28... Rd2 {[%clk 0:00:42.4]} 29. Nxe4
{[%clk 0:00:19]} 29... Nxe4 {[%clk 0:00:31.5]} 30. Rxe4 {[%clk 0:00:19.9]} 30...
Rxc2 {[%clk 0:00:31.6]} 31. Rxe6 {[%clk 0:00:19.3]} 31... Rxc4 {[%clk 0:00:31]}
32. a5 {[%clk 0:00:17.7]} 32... b5 {[%clk 0:00:26]} 33. Ra6 {[%clk 0:00:16.2]}
33... Ra4 {[%clk 0:00:24.7]} 34. Rxa7 {[%clk 0:00:16]} 34... Rxa2 {[%clk
0:00:24.9]} 35. Rc7 {[%clk 0:00:14.6]} 35... c4 {[%clk 0:00:22.8]} 36. Rc5
{[%clk 0:00:06.7]} 36... b4 {[%clk 0:00:14.4]} 37. Rxc4 {[%clk 0:00:05.1]} 37...
b3 {[%clk 0:00:14.6]} 0-1

[Event "*** SCC Grand Prix: Titled Tuesday Blitz"]
[Site "Chess.com"]
[Date "2020.07.21"]
[Round "3"]
[White "crackcubano"]
[Black "Angel_Hranitel_37"]
[Result "1-0"]
[WhiteElo "2631"]
[BlackElo "2401"]
[TimeControl "180+1"]
[EndTime "10:28:02 PDT"]
[Termination "crackcubano won on time"]

1. Nf3 {[%clk 0:03:00.9]} 1... Nf6 {[%clk 0:02:59.2]} 2. c4 {[%clk 0:03:00.3]}
2... g6 {[%clk 0:02:59.3]} 3. g3 {[%clk 0:02:59.4]} 3... Bg7 {[%clk 0:02:59.8]}
4. Bg2 {[%clk 0:02:59.7]} 4... O-O {[%clk 0:03:00.7]} 5. O-O {[%clk 0:02:59.6]}
5... d6 {[%clk 0:03:01.4]} 6. d4 {[%clk 0:02:59.4]} 6... Nc6 {[%clk 0:03:01.6]}
7. Nc3 {[%clk 0:02:59.5]} 7... Bf5 {[%clk 0:03:02.1]} 8. d5 {[%clk 0:02:57.1]}
8... Na5 {[%clk 0:03:02.3]} 9. Nd2 {[%clk 0:02:56.9]} 9... c6 {[%clk 0:03:02.3]}
10. e4 {[%clk 0:02:55.4]} 10... Bg4 {[%clk 0:02:56.9]} 11. Qa4 {[%clk
0:02:52.9]} 11... cxd5 {[%clk 0:02:37.5]} 12. cxd5 {[%clk 0:02:50.4]} 12... a6
{[%clk 0:02:29]} 13. h3 {[%clk 0:02:38.7]} 13... b5 {[%clk 0:02:27.8]} 14. Qb4
{[%clk 0:02:36.4]} 14... Bd7 {[%clk 0:02:19.9]} 15. b3 {[%clk 0:02:24.6]} 15...
Nb7 {[%clk 0:01:55.5]} 16. Bb2 {[%clk 0:02:11.5]} 16... Nc5 {[%clk 0:01:24.4]}
17. Qa3 {[%clk 0:01:35.4]} 17... a5 {[%clk 0:00:59.7]} 18. b4 {[%clk 0:01:35]}
18... axb4 {[%clk 0:00:59.1]} 19. Qxb4 {[%clk 0:01:34.4]} 19... Nd3 {[%clk
0:00:50.3]} 20. Qb3 {[%clk 0:01:33.9]} 20... b4 {[%clk 0:00:48.9]} 21. Nd1
{[%clk 0:01:33.1]} 21... Nxb2 {[%clk 0:00:43.9]} 22. Nxb2 {[%clk 0:01:32.2]}
22... Qb6 {[%clk 0:00:29]} 23. Ndc4 {[%clk 0:01:27.7]} 23... Qb7 {[%clk
0:00:29]} 24. Rfe1 {[%clk 0:01:26.1]} 24... Ne8 {[%clk 0:00:13]} 25. a4 {[%clk
0:01:20.5]} 25... Nc7 {[%clk 0:00:08.5]} 26. e5 {[%clk 0:01:16.9]} 26... Na6
{[%clk 0:00:05.3]} 27. exd6 {[%clk 0:01:15.2]} 27... Nc5 {[%clk 0:00:05.7]} 28.
Qe3 {[%clk 0:01:11.1]} 28... exd6 {[%clk 0:00:05.6]} 29. Nxd6 {[%clk 0:01:10.9]}
29... Qc7 {[%clk 0:00:05.5]} 30. Ndc4 {[%clk 0:01:07.8]} 30... Rfe8 {[%clk
0:00:05.2]} 31. d6 {[%clk 0:00:51.4]} 31... Rxe3 {[%clk 0:00:04.2]} 32. dxc7
{[%clk 0:00:51.1]} 32... Rxe1+ {[%clk 0:00:04.5]} 33. Rxe1 {[%clk 0:00:51.6]}
33... Rc8 {[%clk 0:00:04.8]} 34. Nb6 {[%clk 0:00:44.9]} 34... Rxc7 {[%clk
0:00:04.5]} 35. Nxd7 {[%clk 0:00:44.4]} 35... Rxd7 {[%clk 0:00:03.8]} 36. Re8+
{[%clk 0:00:44.5]} 36... Bf8 {[%clk 0:00:03.9]} 37. a5 {[%clk 0:00:41.4]} 37...
Ra7 {[%clk 0:00:04]} 38. Nc4 {[%clk 0:00:40.8]} 38... b3 {[%clk 0:00:02]} 39.
Rb8 {[%clk 0:00:39.9]} 39... Kg7 {[%clk 0:00:01.3]} 40. Bd5 {[%clk 0:00:35.8]}
40... Be7 {[%clk 0:00:01.3]} 41. Rb5 {[%clk 0:00:30.2]} 1-0

[Event "*** SCC Grand Prix: Titled Tuesday Blitz"]
[Site "Chess.com"]
[Date "2020.07.21"]
[Round "3"]
[White "sasko1234"]
[Black "Eternauta2400"]
[Result "1-0"]
[WhiteElo "2389"]
[BlackElo "2552"]
[TimeControl "180+1"]
[EndTime "10:28:03 PDT"]
[Termination "sasko1234 won by resignation"]

1. b3 {[%clk 0:02:53.7]} 1... e5 {[%clk 0:02:59.6]} 2. Bb2 {[%clk 0:02:53.2]}
2... Nc6 {[%clk 0:03:00]} 3. e3 {[%clk 0:02:53.3]} 3... Nf6 {[%clk 0:02:59.5]}
4. Nf3 {[%clk 0:02:53.2]} 4... e4 {[%clk 0:02:58.7]} 5. Nd4 {[%clk 0:02:52.7]}
5... Nxd4 {[%clk 0:02:58.8]} 6. Bxd4 {[%clk 0:02:52.3]} 6... d5 {[%clk
0:02:58.6]} 7. c4 {[%clk 0:02:51.6]} 7... c6 {[%clk 0:02:58.1]} 8. cxd5 {[%clk
0:02:51.1]} 8... cxd5 {[%clk 0:02:58.7]} 9. Bb5+ {[%clk 0:02:48.6]} 9... Nd7
{[%clk 0:02:55.8]} 10. Nc3 {[%clk 0:02:41.8]} 10... a6 {[%clk 0:02:52.9]} 11.
Bxd7+ {[%clk 0:02:38.9]} 11... Qxd7 {[%clk 0:02:53.8]} 12. Qh5 {[%clk
0:02:37.2]} 12... Qd6 {[%clk 0:02:07.7]} 13. Qxd5 {[%clk 0:02:14.4]} 13... f5
{[%clk 0:01:45.6]} 14. Rc1 {[%clk 0:01:56.6]} 14... Be6 {[%clk 0:00:48.4]} 15.
Qxb7 {[%clk 0:01:36.4]} 15... Rb8 {[%clk 0:00:48.5]} 16. Qa7 {[%clk 0:01:25.8]}
16... Rc8 {[%clk 0:00:33.8]} 17. O-O {[%clk 0:01:19.5]} 17... Be7 {[%clk
0:00:33.9]} 18. Bxg7 {[%clk 0:00:53.4]} 18... Rg8 {[%clk 0:00:32.8]} 19. Qd4
{[%clk 0:00:52]} 19... Kf7 {[%clk 0:00:19.6]} 20. Qxd6 {[%clk 0:00:46.8]} 20...
Bxd6 {[%clk 0:00:20.5]} 21. Bd4 {[%clk 0:00:44.4]} 21... h5 {[%clk 0:00:20.6]}
22. Ne2 {[%clk 0:00:38]} 22... h4 {[%clk 0:00:18]} 23. Rxc8 {[%clk 0:00:37.6]}
23... Rxc8 {[%clk 0:00:16.8]} 24. Rc1 {[%clk 0:00:37.4]} 24... Rg8 {[%clk
0:00:17.2]} 25. Nf4 {[%clk 0:00:32.5]} 25... Bxf4 {[%clk 0:00:16.2]} 26. exf4
{[%clk 0:00:32.8]} 26... a5 {[%clk 0:00:16]} 27. Be3 {[%clk 0:00:31.5]} 27... a4
{[%clk 0:00:15.7]} 28. bxa4 {[%clk 0:00:31.2]} 28... Ra8 {[%clk 0:00:16]} 29. a3
{[%clk 0:00:29.6]} 29... Rxa4 {[%clk 0:00:15.8]} 30. Bc5 {[%clk 0:00:30.2]}
30... Bc4 {[%clk 0:00:14.5]} 31. Bb4 {[%clk 0:00:29.4]} 31... Bd3 {[%clk
0:00:14.7]} 32. f3 {[%clk 0:00:28.9]} 32... h3 {[%clk 0:00:14.4]} 33. fxe4
{[%clk 0:00:28.1]} 33... Bxe4 {[%clk 0:00:13.1]} 34. gxh3 {[%clk 0:00:28.3]}
34... Ra8 {[%clk 0:00:13.4]} 35. Kf2 {[%clk 0:00:28.5]} 35... Rh8 {[%clk
0:00:10.8]} 36. Rc7+ {[%clk 0:00:27]} 36... Ke6 {[%clk 0:00:10.9]} 37. Re7+
{[%clk 0:00:21.7]} 37... Kf6 {[%clk 0:00:11.2]} 38. Bc3+ {[%clk 0:00:20.8]}
38... Kxe7 {[%clk 0:00:11]} 39. Bxh8 {[%clk 0:00:21.5]} 39... Ke6 {[%clk
0:00:10.5]} 40. Be5 {[%clk 0:00:21.3]} 40... Kd5 {[%clk 0:00:11.4]} 41. d4
{[%clk 0:00:21.5]} 41... Kc4 {[%clk 0:00:11.2]} 42. h4 {[%clk 0:00:21.9]} 42...
Bd5 {[%clk 0:00:11.7]} 43. h5 {[%clk 0:00:22.2]} 43... Bf7 {[%clk 0:00:12]} 44.
h6 {[%clk 0:00:22.6]} 44... Bg6 {[%clk 0:00:12.5]} 45. Kg3 {[%clk 0:00:22.9]}
45... Kd5 {[%clk 0:00:12.2]} 46. Kh4 {[%clk 0:00:23.2]} 1-0